bitfinex/quotes_ETHUSD_20241225
["timestamp","ask_amount","ask_price","bid_price","bid_amount"]
[1735087688659,3.0,3493.8,3492.5,8.8499978]
[1735087688863,3.6734,3493.2,3492.5,8.8499978]
[1735087689198,2.86241,3493.6,3492.5,8.8499978]
[1735087689199,0.8107,3493.0,3492.5,8.8499978]
[1735087691247,0.8107,3492.9,3492.5,8.8499978]
[1735087691501,0.8107,3492.9,3491.8,8.8499978]
[1735087692308,0.8107,3492.7,3491.7,2.8639]
[1735087692468,0.8107,3492.5,3491.7,2.8639]
[1735087692847,0.8107,3492.5,3491.6,0.29799314]
[1735087694310,0.8107,3492.3,3491.5,2.86408]
[1735087697824,0.8107,3492.3,3491.3,37.86425]
[1735087698321,2.86377,3491.9,3490.8,11.7146378]
[1735087698455,2.86394,3491.7,3490.8,8.8499978]
[1735087698659,0.8139,3491.4,3490.5,39.06269167]
[1735087699711,0.8139,3491.3,3490.5,1.19778167]
[1735087700595,0.8139,3491.3,3490.4,2.86492]
[1735087700793,0.8139,3491.3,3490.4,4.03641178]
[1735087702599,0.8139,3491.3,3490.4,2.86492]
[1735087708331,0.8139,3491.3,3490.2,2.86515]
[1735087709242,0.7546,3491.2,3490.2,2.86515]
[1735087709383,0.7546,3491.0,3490.0,12.27622159]
[1735087709585,0.7546,3491.0,3490.0,13.15493424]
[1735087709783,0.7546,3490.9,3490.0,11.7153078]
[1735087710082,0.7546,3490.9,3490.0,8.8499978]
[1735087710532,0.7546,3490.9,3489.8,2.86547]
[1735087710685,3.7546,3490.6,3489.5,11.7156578]
[1735087710885,0.7546,3490.4,3489.5,11.7156578]
[1735087713051,0.7546,3490.4,3489.5,8.8499978]
[1735087713192,2.86418,3491.4,3490.0,2.86532]
[1735087713536,0.824,3491.2,3490.2,2.86514]
[1735087713708,0.824,3491.2,3490.2,5.71142631]
[1735087714033,0.824,3491.2,3490.2,2.84628631]
[1735087715441,0.824,3491.2,3490.4,2.86496]
[1735087715864,0.824,3491.2,3490.4,2.86497]
[1735087716970,3.0,3491.1,3490.0,43.8499978]
[1735087717120,0.824,3491.0,3490.0,8.8499978]
[1735087717466,0.824,3491.0,3490.0,9.73499758]
[1735087717762,0.824,3490.9,3490.0,8.8499978]
[1735087718069,0.824,3490.5,3490.0,8.8499978]
[1735087718417,0.824,3490.5,3489.5,2.86573]
[1735087720019,0.824,3490.5,3489.6,2.86565]
[1735087722166,0.824,3490.5,3489.4,0.58328553]
[1735087722167,0.824,3490.5,3489.7,2.86549]
[1735087723779,0.824,3490.5,3489.8,0.7769]
[1735087724073,0.824,3490.5,3490.2,2.86508]
[1735087731774,0.824,3490.5,3489.9,8.8499978]
[1735087731985,0.824,3490.5,3490.1,3.44554946]
[1735087734885,0.824,3490.5,3490.0,8.8499978]
[1735087735959,0.8256,3490.8,3490.0,8.8499978]
[1735087736279,0.8256,3490.3,3490.0,8.8499978]
[1735087736578,0.8256,3490.2,3489.6,0.58631361]
[1735087737375,0.8256,3490.2,3489.3,1.19778167]
[1735087737581,2.86534,3490.0,3489.3,1.19778167]
[1735087737779,0.8256,3489.8,3489.3,1.19778167]
[1735087737990,3.69109,3489.8,3489.3,1.19778167]
[1735087738309,8.21354,3492.2,3489.4,0.04692335]
[1735087738310,0.8256,3489.5,3489.4,0.04692335]
[1735087738585,3.69134,3489.5,3489.4,0.04692335]
[1735087738747,4.060474,3489.5,3489.4,0.02812912]
[1735087739085,0.8256,3489.4,3488.9,1.19778167]
[1735087739883,0.8256,3489.4,3488.4,2.86663]
[1735087740478,0.8256,3489.4,3488.0,4.61298897]
[1735087740682,0.8256,3489.4,3488.4,2.86657]
[1735087740981,0.8256,3489.4,3488.0,7.47988897]
[1735087740982,0.8256,3489.4,3488.7,0.7851]
[1735087741135,0.8256,3489.4,3488.9,2.86618]
[1735087741527,0.8256,3489.4,3489.0,0.02816204]
[1735087741932,1.191014,3490.1,3489.0,8.87815984]
[1735087741933,4.191014,3490.1,3489.0,8.87815984]
[1735087742140,0.8256,3490.0,3489.2,2.6301073]
[1735087742346,1.191014,3490.1,3489.5,8.8499978]
[1735087742547,1.191014,3490.1,3489.8,2.86548]
[1735087742883,1.191014,3490.1,3489.9,0.02845438]
[1735087743605,0.8256,3490.4,3489.9,0.02845438]
[1735087743899,0.8256,3490.4,3490.0,0.02842897]
[1735087744108,0.8256,3490.4,3489.7,2.86556]
[1735087744267,0.8256,3490.4,3490.1,0.02842075]
[1735087744601,0.8256,3490.4,3489.4,8.8499978]
[1735087744749,0.8256,3490.4,3490.2,0.02841252]
[1735087745092,0.8256,3490.4,3490.3,0.02840429]
[1735087745294,0.8256,3490.4,3489.5,2.86571]
[1735087745450,0.8256,3490.4,3490.3,0.02840429]
[1735087745645,0.8256,3490.4,3489.5,1.62817418]
[1735087745932,0.8256,3490.4,3490.3,0.02840429]
[1735087746104,0.8256,3490.4,3489.9,2.8654]
[1735087746291,0.8256,3490.4,3490.3,0.02840429]
[1735087746603,0.8256,3490.4,3489.9,2.8654]
[1735087746751,0.8256,3490.4,3490.3,0.02840429]
[1735087747251,0.8256,3490.4,3490.0,2.86525]
[1735087747451,4.191014,3491.1,3490.3,0.02840429]
[1735087747705,0.8227,3491.0,3490.1,2.86522]
[1735087747852,0.8227,3491.0,3490.4,0.02839033]
[1735087748163,4.78960878,3491.0,3489.9,0.28654]
[1735087748365,3.8227,3490.9,3489.9,3.15194]
[1735087748566,3.8227,3490.9,3490.0,0.02842324]
[1735087749001,3.8227,3490.9,3490.0,2.89374324]
[1735087749297,0.8227,3490.9,3490.0,0.02842324]
[1735087749600,0.8227,3490.9,3490.4,2.86498]
[1735087749953,0.8227,3490.9,3490.5,0.02783256]
[1735087750261,0.8227,3490.9,3490.2,2.86514]
[1735087750460,0.8227,3490.9,3490.6,0.02781861]
[1735087750665,0.8227,3490.9,3490.2,2.86514]
[1735087750866,0.8227,3490.9,3490.7,0.02781039]
[1735087751060,0.8227,3490.9,3490.2,3.44331873]
[1735087751294,0.8227,3490.9,3490.8,0.02780216]
[1735087751500,0.8227,3490.9,3490.2,2.86514]
[1735087751698,0.8227,3490.9,3490.8,0.02780216]
[1735087751850,0.8227,3490.9,3490.2,2.86514]
[1735087752200,0.8227,3490.9,3490.8,0.02780216]
[1735087752703,0.8227,3490.9,3490.2,1.46317851]
[1735087752847,0.8227,3491.2,3490.8,0.02780216]
[1735087753045,1.191014,3491.3,3490.5,2.6301073]
[1735087753291,1.191014,3491.3,3490.9,0.02779394]
[1735087753516,1.191014,3491.3,3490.9,0.85004334]
[1735087753651,2.013714,3491.5,3491.1,2.86437]
[1735087754195,1.191014,3491.5,3491.2,0.02776927]
[1735087754353,1.191014,3491.5,3491.3,2.86425]
[1735087754554,1.191014,3491.5,3491.3,4.03845171]
[1735087754798,1.191014,3491.5,3491.4,0.02775283]
[1735087755387,1.191014,3491.5,3491.1,2.86442]
[1735087755388,1.191014,3491.5,3491.2,2.86433]
[1735087755551,1.191014,3491.5,3491.4,0.02775283]
[1735087755754,1.191014,3492.2,3491.6,0.8214]
[1735087755957,1.191014,3492.2,3491.9,2.86369]
[1735087756280,1.191014,3492.2,3492.0,0.02770351]
[1735087757297,0.8227,3492.6,3492.0,0.05633855]
[1735087757521,0.8227,3492.6,3492.0,0.02770351]
[1735087757724,0.8227,3493.0,3492.4,2.86335]
[1735087758014,0.8227,3493.0,3492.5,2.86327]
[1735087758167,0.8227,3493.0,3492.5,2.88887894]
[1735087758367,0.8227,3493.0,3492.5,0.02560894]
[1735087758676,0.8227,3493.0,3492.3,2.86342]
[1735087758907,0.8227,3493.0,3492.6,0.02737422]
[1735087759123,0.8227,3493.0,3492.3,2.86342]
[1735087759299,0.8227,3493.0,3492.7,0.02722455]
[1735087759506,0.8227,3493.0,3492.3,2.86342]
[1735087759705,0.8227,3493.0,3492.8,0.0272035]
[1735087759872,0.8227,3493.0,3492.3,2.86342]
[1735087760077,0.8227,3493.0,3492.9,0.0271947]
[1735087760277,0.8227,3493.0,3492.3,2.86342]
[1735087760474,0.8227,3493.0,3492.9,0.0271947]
[1735087760817,0.8227,3493.0,3492.3,2.86342]
[1735087760997,0.8227,3493.0,3492.9,0.0271947]
[1735087761201,0.8227,3493.0,3492.3,2.86342]
[1735087761410,0.8227,3493.0,3492.9,0.0271947]
[1735087761577,0.8227,3493.0,3492.4,2.86334]
[1735087761773,0.8227,3493.0,3492.9,0.0271947]
[1735087762117,0.8227,3493.0,3492.9,0.02922724]
[1735087762273,0.8227,3493.0,3492.4,2.86334]
[1735087762487,0.8227,3493.0,3492.9,0.03161283]
[1735087762698,0.8227,3493.0,3492.4,2.86334]
[1735087762931,0.8227,3493.0,3492.9,0.03161283]
[1735087763228,0.8227,3493.0,3492.4,2.86334]
[1735087763431,0.8227,3493.0,3492.9,0.03161283]
[1735087763615,0.8227,3493.0,3492.2,0.8214]
[1735087763815,0.8227,3493.0,3492.5,0.03165391]
[1735087764016,0.8227,3493.0,3492.3,2.86339]
[1735087764185,0.8227,3493.0,3492.6,0.03160077]
[1735087764391,0.8227,3493.0,3492.3,2.86339]
[1735087764624,0.8227,3493.0,3492.7,0.03159051]
[1735087764822,0.8227,3493.0,3492.4,2.86334]
[1735087765236,0.8008,3493.7,3492.4,0.7078721]
[1735087765441,0.8008,3493.7,3492.8,2.863]
[1735087765847,0.8008,3493.7,3492.9,0.03158426]
[1735087766951,3.0,3493.6,3492.9,0.03158426]
[1735087767150,0.8008,3493.0,3491.8,3.63307]
[1735087767447,0.8008,3492.8,3491.8,3.63307]
[1735087767664,0.8008,3492.8,3491.9,2.86375]
[1735087769722,3.66384,3492.8,3491.6,2.86394]
[1735087769923,0.8008,3492.7,3491.6,2.86394]
[1735087770120,3.8008,3492.7,3491.5,8.8499978]
[1735087770323,3.8008,3492.5,3491.5,8.8499978]
[1735087770544,3.0,3492.3,3491.5,8.8499978]
[1735087772138,3.66439,3492.2,3491.5,8.8499978]
[1735087772547,0.8008,3492.2,3491.5,8.8499978]
[1735087773362,3.66433,3492.2,3491.5,8.8499978]
[1735087773970,3.0,3492.1,3491.5,8.8499978]
[1735087774860,0.8008,3492.2,3491.5,11.7140878]
[1735087775035,0.8008,3492.2,3491.6,2.86399]
[1735087775371,0.8059,3492.7,3491.6,0.7522]
[1735087775816,0.8059,3492.7,3491.7,0.02863524]
[1735087776018,0.8059,3492.7,3492.0,2.86362]
[1735087776222,0.8059,3492.7,3492.2,2.86352]
[1735087777230,0.8059,3492.7,3492.3,2.86339]
[1735087777438,0.8059,3493.3,3492.3,2.86339]
[1735087777630,0.366844,3493.2,3492.3,2.86339]
[1735087777966,3.8059,3493.1,3492.0,11.7136078]
[1735087778271,0.8059,3492.8,3492.0,8.8499978]
[1735087779766,0.8059,3493.3,3492.5,2.86323]
[1735087779989,0.8059,3493.3,3492.3,3.61561]
[1735087780197,0.8059,3493.3,3492.4,0.361561]
[1735087780378,0.8059,3493.3,3492.0,9.6021978]
[1735087780589,0.8059,3493.2,3492.0,8.8499978]
[1735087780898,3.8059,3492.9,3492.0,8.8499978]
[1735087781099,0.8059,3492.9,3492.0,8.8499978]
[1735087781273,3.66887,3492.9,3492.0,8.8499978]
[1735087781679,3.66887,3492.9,3491.9,2.86374]
[1735087782006,4.035757,3492.9,3491.8,9.19109205]
[1735087782165,0.7898,3492.7,3491.5,2.86409]
[1735087782352,0.7898,3492.7,3491.6,2.86393]
[1735087782895,3.65291,3492.7,3491.6,2.86393]
[1735087783682,0.7898,3492.6,3491.6,2.86393]
[1735087783902,3.0,3492.6,3491.6,2.86393]
[1735087784199,1.376111,3492.5,3491.6,2.86393]
[1735087785299,2.86256,3493.4,3491.9,0.7931]
[1735087785499,0.7898,3493.0,3492.1,2.6301073]
[1735087785811,0.7898,3493.6,3492.7,2.86308]
[1735087785959,0.7898,3493.6,3492.7,3.228698]
[1735087786560,0.7898,3493.6,3492.7,0.365618]
[1735087786904,3.65218,3493.6,3492.7,0.365618]
[1735087787060,3.0,3493.5,3492.7,0.365618]
[1735087788822,0.7898,3493.6,3492.7,0.365618]
[1735087789497,3.7898,3493.6,3492.7,0.365618]
[1735087791863,3.0,3493.5,3492.7,0.365618]
[1735087792238,2.8631,3492.8,3491.9,8.8499978]
[1735087792421,0.8134,3492.7,3491.9,8.8499978]
[1735087792961,0.8134,3492.7,3491.6,1.19778167]
[1735087793604,2.86329,3492.5,3491.6,1.19778167]
[1735087793807,0.8134,3492.4,3491.6,1.19778167]
[1735087794252,0.8134,3492.4,3491.4,8.8499978]
[1735087794461,2.86344,3492.3,3491.4,8.8499978]
[1735087794771,2.86344,3492.3,3491.3,8.8499978]
[1735087795514,2.86352,3492.2,3491.3,8.8499978]
[1735087795714,2.86352,3492.2,3491.3,10.27570111]
[1735087795956,0.8134,3492.1,3491.0,8.8499978]
[1735087796166,0.8134,3491.8,3490.8,1.19778167]
[1735087796762,2.86395,3491.7,3490.8,1.19778167]
[1735087797881,0.8134,3491.8,3490.9,3.51057693]
[1735087800754,0.8134,3491.8,3491.0,2.86448]
[1735087800955,3.8134,3492.1,3491.1,2.89301095]
[1735087802511,0.8134,3492.1,3490.9,4.7083886]
[1735087802622,2.86378,3491.9,3490.9,1.8438186]
[1735087803026,0.8061,3491.8,3490.9,1.19778167]
[1735087803223,2.8641,3491.5,3490.9,1.19778167]
[1735087803418,0.7739,3491.4,3490.9,1.19778167]
[1735087803624,0.7739,3491.4,3490.6,4.06261167]
[1735087803838,0.7739,3491.4,3490.7,0.58592842]
[1735087806319,2.86438,3491.2,3490.4,8.8499978]
[1735087807882,3.0,3491.3,3490.4,8.8499978]
[1735087809383,3.0,3491.2,3490.2,2.86515]
[1735087809679,3.6381,3491.4,3490.3,2.86507]
[1735087809880,3.6381,3491.4,3490.1,8.8499978]
[1735087809881,3.0,3491.2,3490.1,11.7152178]
[1735087810067,2.86434,3491.2,3490.2,2.84628631]
[1735087810386,3.0,3491.1,3490.2,2.84628631]
[1735087810527,3.0,3491.2,3490.2,2.84628631]
[1735087810731,3.0,3491.2,3490.3,2.86506]
[1735087810931,3.0,3491.2,3490.3,2.89370733]
[1735087811147,0.7739,3491.4,3490.5,2.86487]
[1735087811981,2.6301073,3491.9,3490.5,2.86487]
[1735087811982,0.7739,3491.7,3491.1,2.86441]
[1735087812332,0.7739,3491.7,3491.2,0.0469269]
[1735087813247,2.86418,3491.4,3491.2,0.0469269]
[1735087813453,3.286418,3491.3,3490.8,8.8499978]
[1735087813764,3.0,3491.3,3490.9,0.04697315]
[1735087815987,0.7739,3491.7,3490.9,0.04697315]
[1735087815988,2.86404,3491.6,3490.9,0.04697315]
[1735087816141,3.0,3491.5,3490.9,0.04697315]
[1735087816953,0.7739,3491.7,3490.9,0.04697315]
[1735087816954,3.7739,3491.7,3490.9,0.04697315]
[1735087818058,0.7739,3491.7,3490.9,0.04697315]
[1735087818236,2.86441,3491.2,3490.5,8.8499978]
[1735087818641,2.86441,3491.2,3490.6,0.0259404]
[1735087819694,3.806,3491.1,3490.6,0.0259404]
[1735087819839,2.86475,3490.7,3490.6,0.0259404]
[1735087820043,2.86475,3490.7,3489.5,4.83109167]
[1735087820044,5.86475,3490.7,3489.5,4.83109167]
[1735087820276,2.86484,3490.6,3489.5,4.83109167]
[1735087820547,2.86484,3490.6,3489.6,0.03165021]
[1735087820749,2.86484,3490.6,3489.7,0.48627419]
[1735087820951,3.0,3490.9,3490.0,2.86532]
[1735087821162,3.0,3491.2,3490.1,9.6175978]
[1735087821410,3.0,3491.4,3490.4,2.86492]
[1735087821771,3.0,3491.4,3490.5,35.02727624]
[1735087821977,3.0,3491.4,3490.6,2.84628631]
[1735087822177,3.0,3491.4,3490.6,2.87355374]
[1735087822395,3.0,3491.3,3490.6,2.87355374]
[1735087822577,3.0,3491.3,3490.6,0.02726743]
[1735087822776,3.0,3491.3,3490.4,37.86492]
[1735087823054,3.0,3491.3,3490.4,35.0]
[1735087823274,3.0,3491.3,3490.5,0.02722106]
[1735087824105,3.0,3491.3,3490.3,2.86505]
[1735087824411,0.806,3492.1,3490.8,8.8499978]
[1735087824559,0.806,3492.1,3490.9,0.7676]
[1735087824759,2.86369,3492.0,3490.9,0.80197388]
[1735087825257,3.4361073,3492.0,3490.9,0.03437388]
[1735087825454,0.806,3491.3,3490.9,0.03437388]
[1735087825657,1.173018,3491.3,3490.9,0.03437388]
[1735087825857,4.173018,3491.3,3490.3,11.7149978]
[1735087826112,4.173018,3491.3,3491.0,0.03779893]
[1735087826404,4.173018,3491.3,3490.4,0.03787295]
[1735087826719,1.173018,3491.3,3490.4,0.03787295]
[1735087826894,2.86442,3491.2,3490.4,0.03787295]
[1735087827087,3.0,3491.0,3490.4,0.03787295]
[1735087827474,3.0,3491.0,3490.5,0.03155051]
[1735087827785,2.86459,3490.9,3490.0,0.7676]
[1735087827961,2.86459,3490.9,3490.6,0.03154023]
[1735087828161,2.86459,3490.9,3490.0,0.7676]
[1735087828371,2.86459,3490.9,3490.7,0.03152995]
[1735087828578,3.49142338,3490.9,3490.0,0.7676]
[1735087828780,6.49142338,3490.9,3490.8,0.03151967]
[1735087828996,6.49142338,3490.9,3490.0,0.7676]
[1735087829190,3.62683338,3490.9,3490.0,0.7676]
[1735087829466,0.62683338,3490.9,3490.1,0.03159164]
[1735087829665,3.0,3491.1,3490.1,0.03159164]
[1735087830682,2.86445,3491.1,3490.1,0.03159164]
[1735087831078,3.0,3491.0,3490.1,0.03159164]
[1735087831466,0.806,3491.3,3490.6,0.7676]
[1735087831819,0.806,3491.3,3490.7,0.03439631]
[1735087832512,0.806,3491.3,3490.7,0.06019525]
[1735087835630,1.473012,3491.3,3490.7,0.06019525]
[1735087835778,3.0,3491.2,3490.7,0.06019525]
[1735087836122,0.806,3491.3,3490.8,0.06019525]
[1735087836320,3.0,3491.0,3490.3,0.813]
[1735087836532,3.0,3491.0,3490.9,0.06018603]
[1735087836741,3.0,3491.0,3490.3,0.813]
[1735087836888,3.0,3491.0,3490.9,0.06018603]
[1735087837088,3.722045,3491.0,3490.3,0.813]
[1735087837391,3.722045,3491.0,3490.4,0.06023216]
[1735087837639,3.0,3491.0,3490.4,0.06023216]
[1735087841405,0.55,3491.2,3490.4,0.06023216]
[1735087843344,3.0,3491.0,3490.0,3.67831]
[1735087843499,3.0,3491.0,3490.5,0.06022866]
[1735087843701,3.0,3491.0,3490.0,3.67831]
[1735087843948,3.0,3491.0,3490.1,0.06026558]
[1735087845932,3.0,3490.8,3490.1,0.06026558]
[1735087846132,2.86487,3490.6,3490.1,0.06026558]
[1735087846367,2.86487,3490.6,3489.9,1.19778167]
[1735087846368,0.8153,3490.5,3489.9,1.19778167]
[1735087846588,0.8153,3490.5,3490.2,0.05668388]
[1735087846732,0.368017,3490.4,3489.9,1.19778167]
[1735087847079,0.8153,3490.5,3490.3,0.05674897]
[1735087847280,0.8153,3490.5,3489.9,1.19778167]
[1735087847448,0.8153,3490.5,3490.4,0.05673974]
[1735087847864,0.8153,3490.5,3489.7,0.813]
[1735087848084,3.0,3490.4,3489.5,8.8499978]
[1735087848579,3.0,3490.4,3489.6,0.05690505]
[1735087849388,3.7871254,3490.4,3489.6,0.05690505]
[1735087850440,3.0,3490.4,3489.6,0.05690505]
[1735087850636,2.006314,3490.5,3489.7,2.86557]
[1735087850901,1.191014,3490.5,3490.2,2.86514]
[1735087851387,1.191014,3490.5,3490.3,2.92204339]
[1735087851618,1.79099381,3490.7,3490.3,2.92204339]
[1735087851619,1.191014,3490.7,3490.3,2.92204339]
[1735087852455,1.191014,3490.7,3490.3,0.05698339]
[1735087852878,1.191014,3490.7,3490.1,2.86521]
[1735087853210,5.006914,3491.2,3490.1,5.71149631]
[1735087853359,5.006914,3491.2,3490.2,0.05699262]
[1735087854803,4.191014,3491.1,3490.2,0.05699262]
[1735087856437,4.191014,3491.1,3490.3,0.7505]
[1735087856875,1.191014,3491.1,3490.4,0.05697416]
[1735087857471,4.871274,3491.2,3490.4,0.05697416]
[1735087857679,0.66622678,3491.1,3490.4,0.05697416]
[1735087858010,3.66622678,3491.1,3490.4,0.05697416]
[1735087859514,6.53066678,3491.1,3490.4,0.05697416]
[1735087861215,7.72168078,3491.1,3490.4,0.05697416]
[1735087861392,0.8159,3490.8,3490.4,0.05697416]
[1735087861577,4.24790408,3490.8,3490.0,1.19778167]
[1735087861763,4.24790408,3490.8,3490.5,0.05661618]
[1735087861958,0.55,3490.7,3490.0,1.19778167]
[1735087862211,3.8159,3490.3,3490.0,1.19778167]
[1735087862390,3.8159,3490.3,3489.7,1.19778167]
[1735087863479,5.006914,3490.3,3489.4,2.86581]
[1735087863680,5.006914,3490.3,3489.4,4.28823409]
[1735087864822,3.8159,3490.3,3489.4,4.28823409]
[1735087865691,4.191014,3490.4,3489.7,0.8261]
[1735087865892,4.191014,3490.4,3489.9,2.86538]
[1735087866099,4.191014,3490.4,3490.0,0.369148]
[1735087866301,1.191014,3490.4,3490.0,0.369148]
[1735087867182,4.056024,3490.4,3489.7,0.8261]
[1735087867379,0.7631,3490.3,3489.4,0.8261]
[1735087867722,0.7631,3490.3,3489.5,1.19778167]
[1735087868220,2.86533,3490.0,3489.5,1.19778167]
[1735087868518,0.7631,3489.9,3489.5,1.19778167]
[1735087868871,0.7631,3489.9,3489.1,2.02388167]
[1735087870323,0.7631,3489.9,3489.1,0.8261]
[1735087872616,1.954114,3490.2,3489.3,2.8659]
[1735087873330,1.191014,3490.2,3489.9,2.86539]
[1735087873489,1.191014,3490.2,3490.0,3.69141]
[1735087874036,1.191014,3490.6,3490.0,3.69141]
[1735087874589,1.191014,3490.6,3490.1,0.05586004]
[1735087875723,3.0,3490.7,3490.1,0.05586004]
[1735087876072,3.7631,3490.8,3490.1,0.05586004]
[1735087876272,0.962772,3490.7,3490.1,0.05586004]
[1735087877927,3.962772,3490.7,3490.1,0.05586004]
[1735087878128,2.86483,3490.6,3490.1,0.05586004]
[1735087878420,2.86483,3490.6,3490.2,0.05585081]
[1735087878619,2.86483,3490.6,3489.7,0.8261]
[1735087878804,2.86483,3490.6,3490.3,0.05584158]
[1735087879005,0.962772,3490.7,3489.7,3.69162]
[1735087879167,3.0,3490.7,3490.4,0.05583235]
[1735087879502,3.0,3490.7,3489.7,3.69162]
[1735087879821,3.0,3490.6,3489.8,0.05588773]
[1735087880025,3.0,3490.6,3489.7,3.69162]
[1735087880323,5.86485,3490.6,3489.9,0.0558785]
[1735087880473,0.8368964,3490.5,3489.8,0.05588773]
[1735087880677,0.8368964,3490.5,3490.0,0.05586927]
[1735087880870,1.3833,3490.4,3489.9,0.0558785]
[1735087881076,1.3833,3490.2,3490.1,0.05586004]
[1735087881383,0.8333,3490.0,3489.5,1.19778167]
[1735087881638,3.590266,3489.9,3489.5,1.19778167]
[1735087881828,3.0,3489.8,3489.5,1.19778167]
[1735087881987,5.86553,3489.8,3489.0,1.19778167]
[1735087883276,3.55,3489.8,3489.0,1.19778167]
[1735087883922,3.55,3489.8,3488.8,3.69538]
[1735087884288,3.55,3489.8,3488.8,4.18469617]
[1735087884725,3.4155,3489.8,3488.8,1.31841617]
[1735087884892,2.86558,3489.7,3488.8,0.8291]
[1735087885088,0.55,3489.8,3488.8,0.8291]
[1735087885323,3.41554,3489.8,3488.8,0.8291]
[1735087885756,2.86559,3489.7,3488.8,0.8291]
[1735087889256,0.55,3489.8,3488.8,0.8291]
[1735087889457,3.55,3489.8,3488.8,1.03465432]
[1735087890166,3.55,3489.8,3488.8,0.8291]
[1735087890761,3.55,3489.8,3488.9,2.86623]
[1735087890916,3.55,3489.8,3488.9,3.85881261]
[1735087891230,3.55,3489.8,3489.0,0.05648207]
[1735087897462,0.55,3489.8,3489.0,0.05648207]
[1735087897766,1.0608146,3489.8,3489.0,0.05648207]
[1735087902241,4.0608146,3489.8,3489.0,0.05648207]
[1735087902553,0.55,3489.3,3489.0,0.05648207]
[1735087902884,3.0,3489.2,3488.6,1.19778167]
[1735087903184,0.55,3489.3,3488.6,1.19778167]
[1735087903385,3.0,3489.0,3488.7,0.05647546]
[1735087903556,5.86631,3488.8,3488.7,0.05647546]
[1735087903750,4.1072,3488.9,3488.7,0.05647546]
[1735087903987,1.1072,3488.9,3488.7,0.05647546]
[1735087904803,3.0,3488.8,3488.7,0.05647546]
[1735087905093,5.86631,3488.8,3488.7,0.05647546]
[1735087905388,0.96036173,3488.8,3488.1,0.7648]
[1735087905697,0.96036173,3488.8,3488.2,0.05657886]
[1735087911580,3.96036173,3488.8,3488.2,0.05657886]
[1735087913829,3.0,3488.8,3488.2,0.05657886]
[1735087914217,2.86632,3488.8,3488.2,0.05657886]
[1735087914586,2.86641,3488.7,3488.2,0.05657886]
[1735087915380,2.86665,3488.4,3488.2,0.05657886]
[1735087915634,3.208315,3488.4,3488.2,0.05657886]
[1735087915789,3.208315,3488.4,3487.7,0.7741]
[1735087916188,3.208315,3488.4,3487.8,0.05759437]
[1735087916414,0.8192,3488.3,3487.8,0.05759437]
[1735087916729,0.8192,3488.3,3487.7,0.7741]
[1735087916944,0.8192,3488.3,3487.9,0.05769388]
[1735087917246,4.2769515,3488.3,3488.0,0.05768464]
[1735087917404,4.2769515,3488.3,3487.7,0.7741]
[1735087917608,3.8192,3488.3,3487.8,0.05770313]
[1735087917803,3.8192,3488.3,3487.7,0.7741]
[1735087918022,3.3,3488.9,3487.8,0.05770313]
[1735087918332,3.55,3488.7,3487.7,3.64131]
[1735087918637,3.55,3488.7,3487.8,0.05777755]
[1735087919364,0.55,3488.7,3487.8,0.05777755]
[1735087919515,3.0,3488.6,3487.8,0.05777755]
[1735087920024,3.0,3488.6,3487.7,3.64131]
[1735087920223,3.0,3488.6,3487.8,0.05777755]
[1735087920426,3.0,3488.6,3487.7,3.64131]
[1735087920594,0.55,3488.7,3487.8,0.05777755]
[1735087920795,0.55,3488.7,3487.7,0.7741]
[1735087920796,3.0,3488.5,3487.7,0.7741]
[1735087920995,3.0,3488.5,3487.8,0.05777755]
[1735087922298,3.55,3488.7,3487.8,0.05777755]
[1735087922499,3.41642,3488.7,3487.8,0.05777755]
[1735087923040,3.0,3488.6,3487.8,0.05777755]
[1735087923446,3.41642,3488.7,3487.8,0.05777755]
[1735087923642,3.41642,3488.7,3487.9,0.40632136]
[1735087923798,3.41642,3488.7,3488.0,0.0579022]
[1735087924545,3.0,3488.6,3488.0,0.0579022]
[1735087928150,3.0,3488.6,3488.1,0.811]
[1735087928453,3.0,3489.0,3488.2,0.05788372]
[1735087928626,2.86624,3488.9,3488.2,0.05788372]
[1735087928809,3.0,3488.8,3488.2,0.05788372]
[1735087929012,0.8314,3488.7,3488.2,0.05788372]
[1735087929219,3.0,3488.4,3487.7,0.811]
[1735087929427,3.0,3488.4,3487.8,0.05777757]
[1735087931832,3.0,3488.6,3487.8,0.05777757]
[1735087932034,0.8314,3488.7,3487.8,0.05777757]
[1735087932743,3.55,3488.7,3487.9,0.811]
[1735087933055,3.55,3488.7,3488.0,0.05775908]
[1735087933617,2.70375478,3489.0,3488.0,0.05775908]
[1735087933618,2.022414,3489.0,3488.0,0.05775908]
[1735087933923,3.0,3488.9,3488.1,0.811]
[1735087934229,3.0,3488.9,3488.1,0.86874984]
[1735087937048,3.0,3488.8,3488.1,0.86874984]
[1735087937659,3.0,3489.0,3488.1,0.86874984]
[1735087937820,3.0,3489.0,3488.1,1.24231882]
[1735087938332,3.0,3489.0,3488.1,4.13780488]
[1735087938747,3.0,3489.0,3488.1,4.10913882]
[1735087938950,3.0,3489.0,3488.1,1.24231882]
[1735087939363,3.0,3488.9,3488.1,0.86874984]
[1735087939533,5.022414,3489.3,3488.1,0.05774984]
[1735087939534,0.7588,3488.8,3488.1,0.05774984]
[1735087939739,2.86655,3488.6,3488.1,0.05774984]
[1735087939921,3.0,3488.5,3487.9,0.8116]
[1735087940123,3.0,3488.5,3488.2,0.05763754]
[1735087940322,3.662535,3488.5,3487.9,0.8116]
[1735087940524,3.0,3488.5,3488.3,0.05761685]
[1735087940879,3.0,3488.7,3487.9,0.8116]
[1735087941171,5.8664,3488.7,3488.0,0.05764457]
[1735087943926,3.0,3488.5,3488.0,0.05764457]
[1735087947803,1.191014,3488.7,3488.0,0.05764457]
[1735087947804,4.191014,3488.7,3488.0,0.05764457]
[1735087947947,4.191014,3488.7,3488.1,0.8116]